[Event "Titled Tuesday Blitz July 25 Early 2023"]
[White "Cheer_Down"]
[Black "Luxama, Jacques Muller"]
[BlackFideId "11900113"]
[WhiteElo "2453"]
[BlackElo "2214"]
[Result "1/2-1/2"]
[Round "6"]
[TimeControl "180+2"]
[Date "2023.07.25"]
[WhiteClock "0:01:24"]
[BlackClock "0:01:16"]
[Board "53"]

1. e4 {[%clk 0:02:59]}  e6 {[%clk 0:02:42]} 2. d4 {[%clk 0:02:58]}  d5 {[%clk 0:02:42]} 3. Nc3 {[%clk 0:02:58]}  dxe4 {[%clk 0:02:42]} 4. Nxe4 {[%clk 0:02:58]}  Nd7 {[%clk 0:02:42]} 5. Nf3 {[%clk 0:02:56]}  Ngf6 {[%clk 0:02:42]} 6. Nxf6+ {[%clk 0:02:57]}  Nxf6 {[%clk 0:02:42]} 7. g3 {[%clk 0:02:57]}  Be7 {[%clk 0:02:42]} 8. Bg2 {[%clk 0:02:56]}  O-O {[%clk 0:02:43]} 9. O-O {[%clk 0:02:55]}  c5 {[%clk 0:02:44]} 10. Be3 {[%clk 0:02:54]}  Qc7 {[%clk 0:02:43]} 11. Bf4 {[%clk 0:02:44]}  Qb6 {[%clk 0:02:43]} 12. dxc5 {[%clk 0:02:41]}  Bxc5 {[%clk 0:02:42]} 13. Ne5 {[%clk 0:02:35]}  Rd8 {[%clk 0:02:36]} 14. Qe2 {[%clk 0:02:34]}  Nd7 {[%clk 0:02:31]} 15. c4 {[%clk 0:02:22]}  Nxe5 {[%clk 0:02:31]} 16. Bxe5 {[%clk 0:02:22]}  Bd7 {[%clk 0:02:28]} 17. Rad1 {[%clk 0:02:18]}  Bc6 {[%clk 0:02:25]} 18. Qg4 {[%clk 0:02:15]}  Bf8 {[%clk 0:02:24]} 19. b3 {[%clk 0:02:07]}  Bxg2 {[%clk 0:02:21]} 20. Kxg2 {[%clk 0:02:06]}  Rxd1 {[%clk 0:02:16]} 21. Rxd1 {[%clk 0:02:06]}  Rd8 {[%clk 0:02:16]} 22. Rxd8 {[%clk 0:02:00]}  Qxd8 {[%clk 0:02:17]} 23. Qf3 {[%clk 0:02:00]}  Qd7 {[%clk 0:02:10]} 24. Bc3 {[%clk 0:01:46]}  f6 {[%clk 0:01:56]} 25. Qe4 {[%clk 0:01:43]}  a6 {[%clk 0:01:45]} 26. Qd4 {[%clk 0:01:40]}  Qc6+ {[%clk 0:01:42]} 27. f3 {[%clk 0:01:39]}  Kf7 {[%clk 0:01:41]} 28. Qe4 {[%clk 0:01:38]}  Qxe4 {[%clk 0:01:40]} 29. fxe4 {[%clk 0:01:38]}  Bc5 {[%clk 0:01:35]} 30. g4 {[%clk 0:01:37]}  Kg6 {[%clk 0:01:34]} 31. Kf3 {[%clk 0:01:37]}  Kg5 {[%clk 0:01:33]} 32. Be1 {[%clk 0:01:32]}  h5 {[%clk 0:01:30]} 33. h3 {[%clk 0:01:31]}  hxg4+ {[%clk 0:01:30]} 34. hxg4 {[%clk 0:01:31]}  f5 {[%clk 0:01:23]} 35. Bd2+ {[%clk 0:01:24]}  Kg6 {[%clk 0:01:16]} 1/2-1/2


[Site "https://www.chess.com"]

[Event "Titled Tuesday Blitz July 25 Early 2023"]
[White "Ibarra Jerez, Jose Carlos"]
[Black "Ahmad, Khagan"]
[WhiteFideId "2226332"]
[BlackFideId "13431552"]
[WhiteElo "2925"]
[BlackElo "2592"]
[Result "1-0"]
[Round "6"]
[TimeControl "180+2"]
[Date "2023.07.25"]
[WhiteClock "0:01:11"]
[BlackClock "0:00:20"]
[Board "54"]

1. e4 {[%clk 0:02:58]}  c5 {[%clk 0:02:57]} 2. Nf3 {[%clk 0:02:56]}  d6 {[%clk 0:02:57]} 3. c3 {[%clk 0:02:55]}  Nf6 {[%clk 0:02:55]} 4. h3 {[%clk 0:02:55]}  g6 {[%clk 0:02:48]} 5. Bd3 {[%clk 0:02:56]}  Bg7 {[%clk 0:02:46]} 6. Bc2 {[%clk 0:02:56]}  O-O {[%clk 0:02:46]} 7. O-O {[%clk 0:02:57]}  Nc6 {[%clk 0:02:26]} 8. d4 {[%clk 0:02:57]}  cxd4 {[%clk 0:02:14]} 9. cxd4 {[%clk 0:02:58]}  d5 {[%clk 0:02:13]} 10. e5 {[%clk 0:02:57]}  Ne4 {[%clk 0:02:08]} 11. Nc3 {[%clk 0:02:54]}  Bf5 {[%clk 0:02:07]} 12. Ne2 {[%clk 0:02:37]}  h5 {[%clk 0:01:54]} 13. Nh4 {[%clk 0:02:20]}  e6 {[%clk 0:00:55]} 14. Nxf5 {[%clk 0:02:20]}  gxf5 {[%clk 0:00:56]} 15. Nf4 {[%clk 0:02:09]}  h4 {[%clk 0:00:49]} 16. Nh5 {[%clk 0:02:08]}  Kh7 {[%clk 0:00:43]} 17. f3 {[%clk 0:01:58]}  Ng3 {[%clk 0:00:38]} 18. Nxg3 {[%clk 0:01:48]}  hxg3 {[%clk 0:00:39]} 19. f4 {[%clk 0:01:48]}  Qh4 {[%clk 0:00:34]} 20. Be3 {[%clk 0:01:46]}  f6 {[%clk 0:00:31]} 21. Rf3 {[%clk 0:01:42]}  Bh6 {[%clk 0:00:30]} 22. Qe1 {[%clk 0:01:39]}  fxe5 {[%clk 0:00:30]} 23. Rxg3 {[%clk 0:01:33]}  exf4 {[%clk 0:00:20]} 24. Rg7+ {[%clk 0:01:32]}  Kxg7 {[%clk 0:00:21]} 25. Qxh4 {[%clk 0:01:33]}  fxe3 {[%clk 0:00:22]} 26. Re1 {[%clk 0:01:25]}  Rf6 {[%clk 0:00:21]} 27. g4 {[%clk 0:01:18]}  Rg6 {[%clk 0:00:21]} 28. Kh1 {[%clk 0:01:12]}  f4 {[%clk 0:00:22]} 29. Bxg6 {[%clk 0:01:10]}  Kxg6 {[%clk 0:00:22]} 30. Qh5+ {[%clk 0:01:10]}  Kg7 {[%clk 0:00:22]} 31. g5 {[%clk 0:01:11]}  Rh8 {[%clk 0:00:22]} 32. gxh6+ {[%clk 0:01:11]}  Rxh6 {[%clk 0:00:20]} 33. Rg1+ {[%clk 0:01:11]} 1-0


[Site "https://www.chess.com"]

[Event "Titled Tuesday Blitz July 25 Early 2023"]
[White "Zhigalko, Sergei"]
[Black "Gamayev, Oleg"]
[WhiteFideId "13502956"]
[BlackFideId "2802813"]
[WhiteElo "2880"]
[BlackElo "2584"]
[Result "1/2-1/2"]
[Round "6"]
[TimeControl "180+2"]
[Date "2023.07.25"]
[WhiteClock "0:00:12"]
[BlackClock "0:00:39"]
[Board "55"]

1. e4 {[%clk 0:03:00]}  d6 {[%clk 0:02:59]} 2. d4 {[%clk 0:03:01]}  Nf6 {[%clk 0:03:00]} 3. Nc3 {[%clk 0:03:01]}  e5 {[%clk 0:03:00]} 4. Nf3 {[%clk 0:03:02]}  exd4 {[%clk 0:03:01]} 5. Qxd4 {[%clk 0:03:01]}  Nc6 {[%clk 0:03:00]} 6. Bb5 {[%clk 0:03:01]}  Bd7 {[%clk 0:03:01]} 7. Bxc6 {[%clk 0:03:02]}  Bxc6 {[%clk 0:03:02]} 8. Bg5 {[%clk 0:03:02]}  Be7 {[%clk 0:03:02]} 9. O-O-O {[%clk 0:03:02]}  O-O {[%clk 0:03:03]} 10. Rhe1 {[%clk 0:03:03]}  Re8 {[%clk 0:03:03]} 11. Kb1 {[%clk 0:03:01]}  h6 {[%clk 0:03:00]} 12. Bh4 {[%clk 0:03:01]}  Ng4 {[%clk 0:03:01]} 13. Bxe7 {[%clk 0:03:01]}  Qxe7 {[%clk 0:02:58]} 14. Qd2 {[%clk 0:03:01]}  Ne5 {[%clk 0:02:55]} 15. Nd4 {[%clk 0:03:01]}  Qf6 {[%clk 0:02:44]} 16. f4 {[%clk 0:02:51]}  Ng6 {[%clk 0:02:36]} 17. g3 {[%clk 0:02:41]}  a6 {[%clk 0:02:30]} 18. h4 {[%clk 0:02:39]}  Nf8 {[%clk 0:02:30]} 19. g4 {[%clk 0:02:29]}  Ne6 {[%clk 0:02:19]} 20. Nf5 {[%clk 0:02:18]}  Nc5 {[%clk 0:02:08]} 21. Nd5 {[%clk 0:01:38]}  Bxd5 {[%clk 0:02:03]} 22. Qxd5 {[%clk 0:01:32]}  c6 {[%clk 0:01:58]} 23. Qxd6 {[%clk 0:01:08]}  Nxe4 {[%clk 0:01:53]} 24. Qc7 {[%clk 0:00:37]}  Nd2+ {[%clk 0:01:42]} 25. Kc1 {[%clk 0:00:37]}  Nc4 {[%clk 0:01:42]} 26. c3 {[%clk 0:00:38]}  Rxe1 {[%clk 0:01:16]} 27. Rxe1 {[%clk 0:00:36]}  Qd8 {[%clk 0:01:17]} 28. Qxd8+ {[%clk 0:00:29]}  Rxd8 {[%clk 0:01:18]} 29. b3 {[%clk 0:00:23]}  Nb6 {[%clk 0:01:12]} 30. c4 {[%clk 0:00:22]}  Nc8 {[%clk 0:01:12]} 31. h5 {[%clk 0:00:15]}  Kh7 {[%clk 0:01:10]} 32. Kc2 {[%clk 0:00:13]}  g6 {[%clk 0:01:07]} 33. hxg6+ {[%clk 0:00:14]}  fxg6 {[%clk 0:01:08]} 34. Nh4 {[%clk 0:00:10]}  g5 {[%clk 0:01:03]} 35. fxg5 {[%clk 0:00:09]}  hxg5 {[%clk 0:01:03]} 36. Nf3 {[%clk 0:00:10]}  Kg6 {[%clk 0:01:03]} 37. Re5 {[%clk 0:00:09]}  Kf6 {[%clk 0:01:02]} 38. Rf5+ {[%clk 0:00:10]}  Ke6 {[%clk 0:00:59]} 39. Nxg5+ {[%clk 0:00:10]}  Ke7 {[%clk 0:00:59]} 40. Rf7+ {[%clk 0:00:09]}  Ke8 {[%clk 0:00:56]} 41. Rxb7 {[%clk 0:00:10]}  Rd4 {[%clk 0:00:53]} 42. Rc7 {[%clk 0:00:06]}  Ne7 {[%clk 0:00:51]} 43. Ne6 {[%clk 0:00:04]}  Rxg4 {[%clk 0:00:50]} 44. Ra7 {[%clk 0:00:04]}  Rg2+ {[%clk 0:00:48]} 45. Kb1 {[%clk 0:00:05]}  Nf5 {[%clk 0:00:42]} 46. Rxa6 {[%clk 0:00:04]}  Kd7 {[%clk 0:00:43]} 47. Nc5+ {[%clk 0:00:04]}  Kd6 {[%clk 0:00:42]} 48. Nd3 {[%clk 0:00:02]}  Nd4 {[%clk 0:00:39]} 49. Ra8 {[%clk 0:00:03]}  Rg1+ {[%clk 0:00:36]} 50. Kb2 {[%clk 0:00:03]}  Rg2+ {[%clk 0:00:37]} 51. Kc3 {[%clk 0:00:02]}  c5 {[%clk 0:00:36]} 52. Rd8+ {[%clk 0:00:01]}  Kc7 {[%clk 0:00:35]} 53. Rxd4 {[%clk 0:00:02]}  cxd4+ {[%clk 0:00:35]} 54. Kxd4 {[%clk 0:00:02]}  Rxa2 {[%clk 0:00:36]} 55. Nb4 {[%clk 0:00:02]}  Rb2 {[%clk 0:00:35]} 56. Kc3 {[%clk 0:00:02]}  Rh2 {[%clk 0:00:35]} 57. Nd5+ {[%clk 0:00:02]}  Kd6 {[%clk 0:00:35]} 58. Kb4 {[%clk 0:00:02]}  Rh8 {[%clk 0:00:33]} 59. Nc3 {[%clk 0:00:03]}  Rb8+ {[%clk 0:00:33]} 60. Nb5+ {[%clk 0:00:02]}  Kc6 {[%clk 0:00:34]} 61. Ka4 {[%clk 0:00:02]}  Kc5 {[%clk 0:00:34]} 62. Ka3 {[%clk 0:00:02]}  Rxb5 {[%clk 0:00:33]} 63. cxb5 {[%clk 0:00:02]}  Kxb5 {[%clk 0:00:34]} 64. b4 {[%clk 0:00:03]}  Kb6 {[%clk 0:00:34]} 65. Ka4 {[%clk 0:00:04]}  Ka6 {[%clk 0:00:34]} 66. b5+ {[%clk 0:00:05]}  Kb6 {[%clk 0:00:35]} 67. Kb4 {[%clk 0:00:06]}  Kb7 {[%clk 0:00:35]} 68. Kc5 {[%clk 0:00:06]}  Kc7 {[%clk 0:00:36]} 69. b6+ {[%clk 0:00:07]}  Kb7 {[%clk 0:00:37]} 70. Kb5 {[%clk 0:00:07]}  Kb8 {[%clk 0:00:37]} 71. Kc5 {[%clk 0:00:08]}  Kb7 {[%clk 0:00:37]} 72. Kb5 {[%clk 0:00:09]}  Kb8 {[%clk 0:00:38]} 73. Ka6 {[%clk 0:00:10]}  Ka8 {[%clk 0:00:39]} 74. b7+ {[%clk 0:00:11]}  Kb8 {[%clk 0:00:39]} 75. Kb6 {[%clk 0:00:12]} 1/2-1/2


[Site "https://www.chess.com"]

[Event "Titled Tuesday Blitz July 25 Early 2023"]
[White "Al-Tarboush, Ward"]
[Black "Ilamparthi A R"]
[WhiteFideId "7601450"]
[BlackFideId "45015775"]
[WhiteElo "2583"]
[BlackElo "2842"]
[Result "0-1"]
[Round "6"]
[TimeControl "180+2"]
[Date "2023.07.25"]
[WhiteClock "0:00:00"]
[BlackClock "0:00:09"]
[Board "56"]

1. e4 {[%clk 0:03:00]}  c5 {[%clk 0:03:00]} 2. Nf3 {[%clk 0:03:00]}  e6 {[%clk 0:02:55]} 3. d4 {[%clk 0:03:00]}  cxd4 {[%clk 0:02:55]} 4. Nxd4 {[%clk 0:03:01]}  Nf6 {[%clk 0:02:56]} 5. Nc3 {[%clk 0:03:01]}  Nc6 {[%clk 0:02:56]} 6. Bf4 {[%clk 0:03:01]}  Bb4 {[%clk 0:02:52]} 7. Nb5 {[%clk 0:02:59]}  Nxe4 {[%clk 0:02:48]} 8. Qf3 {[%clk 0:02:59]}  d5 {[%clk 0:02:39]} 9. Nc7+ {[%clk 0:02:55]}  Kf8 {[%clk 0:02:39]} 10. Nxa8 {[%clk 0:02:54]}  e5 {[%clk 0:02:19]} 11. Bd2 {[%clk 0:02:53]}  Nd4 {[%clk 0:02:18]} 12. Qd1 {[%clk 0:02:53]}  Qh4 {[%clk 0:02:18]} 13. g3 {[%clk 0:02:53]}  Qf6 {[%clk 0:02:17]} 14. Nxe4 {[%clk 0:02:53]}  Nf3+ {[%clk 0:02:13]} 15. Qxf3 {[%clk 0:02:53]}  Qxf3 {[%clk 0:02:12]} 16. Bxb4+ {[%clk 0:02:53]}  Kg8 {[%clk 0:02:12]} 17. Nd6 {[%clk 0:02:52]}  Qxh1 {[%clk 0:02:11]} 18. O-O-O {[%clk 0:02:47]}  Be6 {[%clk 0:02:11]} 19. Nc7 {[%clk 0:02:42]}  Qxh2 {[%clk 0:02:06]} 20. Nxd5 {[%clk 0:02:42]}  Bxd5 {[%clk 0:02:06]} 21. Rxd5 {[%clk 0:02:43]}  Qxf2 {[%clk 0:02:07]} 22. Bc4 {[%clk 0:02:41]}  Qe3+ {[%clk 0:01:52]} 23. Kd1 {[%clk 0:02:36]}  h5 {[%clk 0:01:27]} 24. Nxf7 {[%clk 0:02:11]}  Qg1+ {[%clk 0:01:18]} 25. Kd2 {[%clk 0:02:07]}  Kxf7 {[%clk 0:01:08]} 26. Rd6+ {[%clk 0:01:49]}  Ke8 {[%clk 0:01:01]} 27. Bb5+ {[%clk 0:01:48]}  Ke7 {[%clk 0:00:59]} 28. Rh6+ {[%clk 0:01:45]}  Kd8 {[%clk 0:00:50]} 29. Rxh8+ {[%clk 0:01:44]}  Kc7 {[%clk 0:00:50]} 30. Bc3 {[%clk 0:01:02]}  Qxg3 {[%clk 0:00:43]} 31. Rf8 {[%clk 0:00:44]}  h4 {[%clk 0:00:31]} 32. Rf5 {[%clk 0:00:34]}  Qg2+ {[%clk 0:00:23]} 33. Be2 {[%clk 0:00:30]}  e4 {[%clk 0:00:23]} 34. Rf7+ {[%clk 0:00:24]}  Kc6 {[%clk 0:00:23]} 35. Rxg7 {[%clk 0:00:23]}  Qf2 {[%clk 0:00:22]} 36. Rg6+ {[%clk 0:00:19]}  Kd7 {[%clk 0:00:21]} 37. Rg7+ {[%clk 0:00:20]}  Ke6 {[%clk 0:00:21]} 38. Rg6+ {[%clk 0:00:19]}  Ke7 {[%clk 0:00:20]} 39. Rf6 {[%clk 0:00:16]}  Qg3 {[%clk 0:00:18]} 40. Rf5 {[%clk 0:00:11]}  h3 {[%clk 0:00:17]} 41. Be5 {[%clk 0:00:11]}  e3+ {[%clk 0:00:15]} 42. Kd3 {[%clk 0:00:11]}  Qg6 {[%clk 0:00:16]} 43. Ke4 {[%clk 0:00:10]}  Qg2+ {[%clk 0:00:14]} 44. Kxe3 {[%clk 0:00:10]}  h2 {[%clk 0:00:14]} 45. Bf3 {[%clk 0:00:05]}  Qg1+ {[%clk 0:00:11]} 46. Ke4 {[%clk 0:00:06]}  Qe1+ {[%clk 0:00:11]} 47. Kf4 {[%clk 0:00:05]}  h1=Q {[%clk 0:00:11]} 48. Bxh1 {[%clk 0:00:05]}  Qxh1 {[%clk 0:00:12]} 49. Rg5 {[%clk 0:00:03]}  Qh2+ {[%clk 0:00:12]} 50. Kf5 {[%clk 0:00:03]}  Qxc2+ {[%clk 0:00:12]} 51. Kf4 {[%clk 0:00:03]}  Ke6 {[%clk 0:00:12]} 52. Bc3 {[%clk 0:00:02]}  Qc1+ {[%clk 0:00:12]} 53. Kg4 {[%clk 0:00:02]}  Qd1+ {[%clk 0:00:11]} 54. Kf4 {[%clk 0:00:03]}  b5 {[%clk 0:00:11]} 55. Re5+ {[%clk 0:00:03]}  Kd6 {[%clk 0:00:12]} 56. Re4 {[%clk 0:00:01]}  Qf1+ {[%clk 0:00:11]} 57. Ke3 {[%clk 0:00:02]}  Kc6 {[%clk 0:00:11]} 58. Rf4 {[%clk 0:00:02]}  Qg1+ {[%clk 0:00:11]} 59. Kd3 {[%clk 0:00:02]}  Qg3+ {[%clk 0:00:09]} 60. Ke4 {[%clk 0:00:02]}  a5 {[%clk 0:00:09]} 61. Rf6+ {[%clk 0:00:02]}  Kc5 {[%clk 0:00:09]} 62. Rf5+ {[%clk 0:00:01]}  Kc4 {[%clk 0:00:09]} 63. Rf4 {[%clk 0:00:01]}  b4 {[%clk 0:00:08]} 64. Ke5+ {[%clk 0:00:00]}  Kb5 {[%clk 0:00:09]} 0-1


[Site "https://www.chess.com"]

[Event "Titled Tuesday Blitz July 25 Early 2023"]
[White "KhalilMousavi98"]
[Black "Vovk, Orest"]
[BlackFideId "14113490"]
[WhiteElo "2840"]
[BlackElo "2575"]
[Result "1/2-1/2"]
[Round "6"]
[TimeControl "180+2"]
[Date "2023.07.25"]
[WhiteClock "0:00:03"]
[BlackClock "0:00:05"]
[Board "58"]

1. e4 {[%clk 0:03:00]}  g5 {[%clk 0:02:59]} 2. Ke2 {[%clk 0:02:54]}  d5 {[%clk 0:02:57]} 3. Ke3 {[%clk 0:02:51]}  dxe4 {[%clk 0:02:56]} 4. Kxe4 {[%clk 0:02:44]}  Nc6 {[%clk 0:02:35]} 5. c3 {[%clk 0:02:31]}  Nf6+ {[%clk 0:02:27]} 6. Ke3 {[%clk 0:02:26]}  Nd5+ {[%clk 0:02:24]} 7. Ke2 {[%clk 0:02:24]}  Nf4+ {[%clk 0:02:23]} 8. Ke1 {[%clk 0:02:23]}  Nd3+ {[%clk 0:02:22]} 9. Bxd3 {[%clk 0:02:22]}  Qxd3 {[%clk 0:02:23]} 10. Qe2 {[%clk 0:02:17]}  Qd5 {[%clk 0:02:22]} 11. Qf3 {[%clk 0:01:57]}  Qe5+ {[%clk 0:02:18]} 12. Qe2 {[%clk 0:01:54]}  Qd5 {[%clk 0:02:12]} 13. Qf3 {[%clk 0:01:32]}  Qe5+ {[%clk 0:02:09]} 14. Qe3 {[%clk 0:01:30]}  Qd5 {[%clk 0:02:02]} 15. Nf3 {[%clk 0:01:26]}  g4 {[%clk 0:01:59]} 16. Nh4 {[%clk 0:01:25]}  h5 {[%clk 0:01:48]} 17. f4 {[%clk 0:01:19]}  Bg7 {[%clk 0:01:33]} 18. Rf1 {[%clk 0:01:06]}  Bf6 {[%clk 0:01:28]} 19. g3 {[%clk 0:01:05]}  Bxh4 {[%clk 0:01:25]} 20. gxh4 {[%clk 0:01:05]}  Qg2 {[%clk 0:01:07]} 21. Qf2 {[%clk 0:00:51]}  Qh3 {[%clk 0:00:52]} 22. d4 {[%clk 0:00:41]}  Bf5 {[%clk 0:00:45]} 23. Be3 {[%clk 0:00:36]}  O-O-O {[%clk 0:00:43]} 24. Nd2 {[%clk 0:00:31]}  Rh6 {[%clk 0:00:39]} 25. Nb3 {[%clk 0:00:24]}  Re6 {[%clk 0:00:32]} 26. Kd2 {[%clk 0:00:23]}  b6 {[%clk 0:00:22]} 27. Rae1 {[%clk 0:00:18]}  a5 {[%clk 0:00:22]} 28. Kc1 {[%clk 0:00:14]}  a4 {[%clk 0:00:22]} 29. Nd2 {[%clk 0:00:15]}  Na5 {[%clk 0:00:21]} 30. Rg1 {[%clk 0:00:13]}  Kb8 {[%clk 0:00:13]} 31. Qg3 {[%clk 0:00:09]}  Qxg3 {[%clk 0:00:12]} 32. Rxg3 {[%clk 0:00:09]}  Bh7 {[%clk 0:00:08]} 33. Bf2 {[%clk 0:00:08]}  Rxe1+ {[%clk 0:00:07]} 34. Bxe1 {[%clk 0:00:09]}  c5 {[%clk 0:00:06]} 35. dxc5 {[%clk 0:00:07]}  bxc5 {[%clk 0:00:07]} 36. Re3 {[%clk 0:00:07]}  e6 {[%clk 0:00:07]} 37. Re5 {[%clk 0:00:07]}  Nb7 {[%clk 0:00:07]} 38. Rxh5 {[%clk 0:00:07]}  Bf5 {[%clk 0:00:06]} 39. Rg5 {[%clk 0:00:06]}  Rh8 {[%clk 0:00:06]} 40. h5 {[%clk 0:00:05]}  f6 {[%clk 0:00:06]} 41. Rg7 {[%clk 0:00:05]}  Rxh5 {[%clk 0:00:07]} 42. Bg3 {[%clk 0:00:05]}  Nd6 {[%clk 0:00:06]} 43. Rd7 {[%clk 0:00:05]}  Ne4 {[%clk 0:00:06]} 44. Nxe4 {[%clk 0:00:05]}  Bxe4 {[%clk 0:00:07]} 45. Rf7 {[%clk 0:00:03]}  f5 {[%clk 0:00:07]} 46. Re7 {[%clk 0:00:03]}  Bd5 {[%clk 0:00:07]} 47. b3 {[%clk 0:00:01]}  axb3 {[%clk 0:00:06]} 48. axb3 {[%clk 0:00:02]}  Bxb3 {[%clk 0:00:06]} 49. Kd2 {[%clk 0:00:03]}  Bd5 {[%clk 0:00:06]} 50. Ke3 {[%clk 0:00:03]}  Rh8 {[%clk 0:00:05]} 51. Kd3 {[%clk 0:00:03]}  c4+ {[%clk 0:00:05]} 52. Kd4 {[%clk 0:00:03]}  Rd8 {[%clk 0:00:05]} 53. Ke5 {[%clk 0:00:03]}  Be4 {[%clk 0:00:06]} 54. Kxe6 {[%clk 0:00:03]}  Rd3 {[%clk 0:00:06]} 55. Bh4 {[%clk 0:00:03]}  Rxc3 {[%clk 0:00:05]} 56. Bf6 {[%clk 0:00:03]}  Rb3 {[%clk 0:00:05]} 57. Be5+ {[%clk 0:00:04]}  Ka8 {[%clk 0:00:05]} 58. Kd6 {[%clk 0:00:04]}  Rb7 {[%clk 0:00:04]} 59. Re8+ {[%clk 0:00:02]}  Ka7 {[%clk 0:00:04]} 60. Bd4+ {[%clk 0:00:03]}  Ka6 {[%clk 0:00:03]} 61. Kc5 {[%clk 0:00:04]}  Rc7+ {[%clk 0:00:02]} 62. Kb4 {[%clk 0:00:04]}  c3 {[%clk 0:00:02]} 63. Bxc3 {[%clk 0:00:04]}  Kb7 {[%clk 0:00:02]} 64. Bd4 {[%clk 0:00:04]}  Rc6 {[%clk 0:00:02]} 65. Bc5 {[%clk 0:00:05]}  Kc7 {[%clk 0:00:02]} 66. Re7+ {[%clk 0:00:05]}  Kd8 {[%clk 0:00:03]} 67. Rg7 {[%clk 0:00:06]}  Ke8 {[%clk 0:00:03]} 68. Bd4 {[%clk 0:00:06]}  Rc1 {[%clk 0:00:02]} 69. Ra7 {[%clk 0:00:06]}  Rc2 {[%clk 0:00:02]} 70. Rh7 {[%clk 0:00:05]}  Bd3 {[%clk 0:00:03]} 71. Be5 {[%clk 0:00:02]}  Rc4+ {[%clk 0:00:03]} 72. Kb3 {[%clk 0:00:03]}  Rc2 {[%clk 0:00:04]} 73. Kb4 {[%clk 0:00:03]}  Be4 {[%clk 0:00:04]} 74. Kb5 {[%clk 0:00:03]}  Rc1 {[%clk 0:00:04]} 75. Kb6 {[%clk 0:00:04]}  Rc6+ {[%clk 0:00:04]} 76. Kb5 {[%clk 0:00:04]}  Rc2 {[%clk 0:00:04]} 77. Bd4 {[%clk 0:00:04]}  Kf8 {[%clk 0:00:05]} 78. Be5 {[%clk 0:00:03]}  Kg8 {[%clk 0:00:05]} 79. Rh8+ {[%clk 0:00:03]}  Kf7 {[%clk 0:00:05]} 80. Rh7+ {[%clk 0:00:04]}  Kg6 {[%clk 0:00:05]} 81. Rh8 {[%clk 0:00:05]}  Kf7 {[%clk 0:00:05]} 82. Kb4 {[%clk 0:00:06]}  Kg6 {[%clk 0:00:05]} 83. Kb3 {[%clk 0:00:06]}  Rc6 {[%clk 0:00:04]} 84. Rg8+ {[%clk 0:00:06]}  Kf7 {[%clk 0:00:04]} 85. Rg7+ {[%clk 0:00:06]}  Kf8 {[%clk 0:00:04]} 86. Rh7 {[%clk 0:00:06]}  Rb6+ {[%clk 0:00:03]} 87. Kc3 {[%clk 0:00:06]}  Rc6+ {[%clk 0:00:04]} 88. Kd4 {[%clk 0:00:06]}  Kg8 {[%clk 0:00:05]} 89. Rh8+ {[%clk 0:00:06]}  Kf7 {[%clk 0:00:05]} 90. Rh7+ {[%clk 0:00:06]}  Kg8 {[%clk 0:00:06]} 91. Rg7+ {[%clk 0:00:06]}  Kf8 {[%clk 0:00:06]} 92. Rg5 {[%clk 0:00:04]}  Kf7 {[%clk 0:00:05]} 93. Rh5 {[%clk 0:00:04]}  Kg6 {[%clk 0:00:04]} 94. Rh8 {[%clk 0:00:04]}  Kf7 {[%clk 0:00:04]} 95. Ke3 {[%clk 0:00:03]}  Ra6 {[%clk 0:00:04]} 96. Kf2 {[%clk 0:00:04]}  Ra3 {[%clk 0:00:03]} 97. Rh7+ {[%clk 0:00:03]}  Kg8 {[%clk 0:00:02]} 98. Rh8+ {[%clk 0:00:03]}  Kf7 {[%clk 0:00:03]} 99. Rb8 {[%clk 0:00:03]}  Ke6 {[%clk 0:00:03]} 100. Rb6+ {[%clk 0:00:03]}  Kd5 {[%clk 0:00:03]} 101. Rd6+ {[%clk 0:00:04]}  Kc4 {[%clk 0:00:03]} 102. Rd4+ {[%clk 0:00:04]}  Kc5 {[%clk 0:00:02]} 103. Rd2 {[%clk 0:00:04]}  Rb3 {[%clk 0:00:02]} 104. Bd6+ {[%clk 0:00:04]}  Kc6 {[%clk 0:00:02]} 105. Be5 {[%clk 0:00:05]}  Rd3 {[%clk 0:00:02]} 106. Rc2+ {[%clk 0:00:05]}  Kd5 {[%clk 0:00:03]} 107. Rb2 {[%clk 0:00:05]}  Rf3+ {[%clk 0:00:03]} 108. Kg1 {[%clk 0:00:04]}  Rd3 {[%clk 0:00:04]} 109. Kf2 {[%clk 0:00:03]}  Rf3+ {[%clk 0:00:04]} 110. Kg1 {[%clk 0:00:04]}  Rd3 {[%clk 0:00:05]} 111. Kf2 {[%clk 0:00:03]} 1/2-1/2


[Site "https://www.chess.com"]

[Event "Titled Tuesday Blitz July 25 Early 2023"]
[White "Andreev, Konstantin"]
[Black "Tristan, Leonardo"]
[WhiteFideId "24239305"]
[BlackFideId "113816"]
[WhiteElo "2541"]
[BlackElo "2762"]
[Result "0-1"]
[Round "6"]
[TimeControl "180+2"]
[Date "2023.07.25"]
[WhiteClock "0:01:42"]
[BlackClock "0:01:01"]
[Board "66"]

1. e4 {[%clk 0:03:00]}  d5 {[%clk 0:03:00]} 2. exd5 {[%clk 0:02:59]}  Qxd5 {[%clk 0:03:01]} 3. Nc3 {[%clk 0:02:59]}  Qa5 {[%clk 0:03:01]} 4. d4 {[%clk 0:02:59]}  Nf6 {[%clk 0:03:02]} 5. Bc4 {[%clk 0:02:59]}  Bg4 {[%clk 0:03:02]} 6. Nf3 {[%clk 0:02:59]}  Nc6 {[%clk 0:03:01]} 7. Bd2 {[%clk 0:02:58]}  O-O-O {[%clk 0:02:44]} 8. Nd5 {[%clk 0:02:30]}  Qa4 {[%clk 0:02:44]} 9. Bb3 {[%clk 0:02:30]}  Qa6 {[%clk 0:02:44]} 10. Nxf6 {[%clk 0:02:19]}  exf6 {[%clk 0:02:45]} 11. d5 {[%clk 0:02:20]}  Bb4 {[%clk 0:01:14]} 12. c3 {[%clk 0:02:13]}  Ne5 {[%clk 0:01:01]} 13. cxb4 {[%clk 0:01:55]}  Nd3+ {[%clk 0:01:01]} 14. Kf1 {[%clk 0:01:56]}  Nf4+ {[%clk 0:01:01]} 15. Kg1 {[%clk 0:01:49]}  Ne2+ {[%clk 0:01:02]} 16. Kf1 {[%clk 0:01:45]}  Nc3+ {[%clk 0:01:01]} 17. b5 {[%clk 0:01:42]}  Qxb5+ {[%clk 0:01:01]} 0-1


[Site "https://www.chess.com"]